fUSD/lending_fUSD_20240213
["ID","MTS","AMOUNT","RATE_DAILY","PERIOD"]
[313918847,1707823845576,-597.42509435,0.00029067,2]
[313918848,1707823845586,-500.0,0.00029067,2]
[313918849,1707823845595,-587.49,0.00029067,2]
[313918850,1707823845604,-500.0,0.00029067,2]
[313918851,1707823845614,-500.0,0.00029067,2]
[313918852,1707823845623,-500.0,0.00029067,2]
[313918853,1707823845633,-500.0,0.00029067,2]
[313918854,1707823845642,-525.37632493,0.00029067,2]
[313918855,1707823845652,-500.0,0.00029067,2]
[313918856,1707823845661,-500.0,0.00029067,2]
[313918857,1707823845671,-500.0,0.00029067,2]
[313918858,1707823845681,-22013.21,0.00029067,2]
[313918859,1707823845690,-500.0,0.00029067,2]
[313918860,1707823845699,-527.93157993,0.00029067,2]
[313918861,1707823845708,-500.0,0.00029067,2]
[313918862,1707823845718,-500.0,0.00029067,2]
[313918863,1707823845727,-500.0,0.00029067,2]
[313918864,1707823845736,-500.0,0.00029067,2]
[313918865,1707823845745,-980.47,0.00029067,2]
[313918866,1707823845754,-500.0,0.00029067,2]
[313918867,1707823845763,-500.0,0.00029067,2]
[313918868,1707823845772,-500.0,0.00029067,2]
[313918869,1707823845781,-500.0,0.00029067,2]
[313918870,1707823845791,-537.30757154,0.00029067,2]
[313918871,1707823845800,-1644.37,0.00029067,2]
[313918872,1707823845809,-4024.1,0.00029067,2]
[313918873,1707823845818,-500.0,0.00029067,2]
[313918874,1707823845830,-500.0,0.00029067,2]
[313918875,1707823845838,-500.0,0.00029067,2]
[313918876,1707823845847,-500.0,0.00029067,2]
[313918877,1707823845856,-504.78,0.00029067,2]
[313918878,1707823845866,-500.0,0.00029067,2]
[313918879,1707823845875,-500.0,0.00029067,2]
[313918880,1707823845884,-563.36,0.00029067,2]
[313918881,1707823845893,-500.0,0.00029067,2]
[313918882,1707823845902,-500.0,0.00029067,2]
[313918883,1707823845911,-500.0,0.00029067,2]
[313918884,1707823845920,-538.99,0.00029067,2]
[313918885,1707823845929,-500.0,0.00029067,2]
[313918886,1707823845938,-1049.6,0.00029067,2]
[313918887,1707823845947,-513.64,0.00029067,2]
[313918888,1707823845956,-500.0,0.00029067,2]
[313918889,1707823845966,-271.59552411,0.00029067,2]
[313918890,1707823845975,-1057.39,0.00029067,2]
[313918891,1707823845984,-500.0,0.00029067,2]
[313918892,1707823845993,-500.0,0.00029067,2]
[313918893,1707823846003,-500.0,0.00029067,2]
[313918894,1707823846012,-500.0,0.00029067,2]
[313918895,1707823846021,-150.0,0.00029088,2]
[313918897,1707823846030,-43476.0,0.00029096,4]
[313918898,1707823846039,-500.0,0.00029099,2]
[313918899,1707823846048,-500.0,0.00029099,2]
[313918900,1707823846057,-500.0,0.00029099,2]
[313918901,1707823846066,-500.0,0.00029099,2]
[313918902,1707823846075,-589.53623074,0.00029099,2]
[313918903,1707823846085,-500.0,0.00029099,2]
[313918904,1707823846095,-500.0,0.00029099,2]
[313918905,1707823846103,-500.0,0.00029099,2]
[313918906,1707823846112,-500.0,0.00029099,2]
[313918907,1707823846121,-500.0,0.00029099,2]
[313918908,1707823846130,-500.0,0.00029099,2]
[313918909,1707823846139,-500.0,0.00029099,2]
[313918910,1707823846148,-500.0,0.00029099,2]
[313918911,1707823846158,-500.0,0.00029099,2]
[313918913,1707823846167,-500.0,0.00029099,2]
[313918915,1707823846177,-500.0,0.00029099,2]
[313918916,1707823846186,-500.0,0.00029099,2]
[313918917,1707823846195,-500.0,0.00029099,2]
[313918918,1707823846205,-500.0,0.00029099,2]
[313918919,1707823846214,-500.0,0.00029099,2]
[313918921,1707823846223,-500.0,0.00029099,2]
[313918922,1707823846232,-500.0,0.00029099,2]
[313918923,1707823846241,-231.49911618,0.00029099,2]
[313918924,1707823846250,-500.0,0.00029099,2]
[313918925,1707823846260,-500.0,0.00029099,2]
[313918926,1707823846270,-500.0,0.00029099,2]
[313918927,1707823846279,-500.0,0.00029099,2]
[313918928,1707823846289,-500.0,0.00029099,2]
[313918929,1707823846298,-500.0,0.00029099,2]
[313918930,1707823846307,-828036.95749185,0.00029099,3]
[313918931,1707823846317,-1000000.0,0.000291,3]
[313918932,1707823846327,-200.0,0.000291,2]
[313918933,1707823846337,-6424.16,0.000291,2]
[313918934,1707823846347,-1376.61,0.000291,2]
[313918935,1707823846358,-10264.7,0.000291,2]
[313918936,1707823846369,-1500.0,0.000291,2]
[313918937,1707823846378,-525.03,0.000291,2]
[313918938,1707823846387,-170.80855075,0.0002912,2]
[313918939,1707823846396,-203.20755972,0.00029128,2]
[313918940,1707823846406,-1019.01531303,0.00029128,2]
[313918941,1707823846415,-388.73273002,0.00029129,2]
[313918942,1707823846424,-492.2622605,0.00029129,2]
[313918943,1707823846434,-492.30325766,0.00029129,2]
[313918944,1707823846444,-500.0,0.00029129,2]
[313918945,1707823846453,-500.0,0.00029129,2]
[313918946,1707823846462,-569.95164342,0.00029129,2]
[313918947,1707823846471,-259.21166083,0.00029129,2]
[313918948,1707823846481,-500.0,0.00029129,2]
[313918949,1707823846490,-500.0,0.00029129,2]
[313918950,1707823846499,-500.0,0.00029129,2]
[313918951,1707823846508,-500.0,0.00029129,2]
[313918952,1707823846517,-589.44954135,0.00029129,2]
[313918953,1707823846526,-500.0,0.00029129,2]
[313918954,1707823846536,-539.66214035,0.00029129,2]
[313918955,1707823846545,-150.0,0.00029129,2]
[313918956,1707823846555,-150.0,0.00029129,2]
[313918957,1707823846564,-150.0,0.00029129,2]
[313918958,1707823846573,-228.30054592,0.00029129,2]
[313918959,1707823846583,-4950.2326777,0.0002913,3]
[313918960,1707823846592,-3942733.68887352,0.0002913,2]
[313918961,1707823846602,-51643.78389949,0.0002913,2]
[313918962,1707823846611,-719.55,0.0002913,2]
[313918963,1707823846620,-2817.8817789,0.00029141,2]
[313918964,1707823846629,-84022.1439041,0.00029161,2]
[313918965,1707823846638,-2829.1513397,0.00029161,2]
[313918966,1707823846648,-4849.7811214,0.00029181,2]
[313918967,1707823846657,-289.36546737,0.00029214,2]
[313918968,1707823846666,-720.1,0.00029214,2]
[313918969,1707823846676,-500.0,0.00029214,2]
[313918970,1707823846685,-381.52900891,0.00029214,2]
[313918971,1707823846694,-500.0,0.00029214,2]
[313918972,1707823846703,-500.0,0.00029214,2]
[313918973,1707823846712,-500.0,0.00029214,2]
[313918974,1707823846721,-1000.0,0.00029214,7]
[313918975,1707823846730,-500.0,0.00029214,2]
[313918976,1707823846739,-417.00163147,0.00029214,2]
[313918977,1707823846749,-530.16154099,0.00029214,2]
[313918978,1707823846758,-500.0,0.00029214,2]
[313918979,1707823846767,-510.5049026,0.00029214,2]
[313918980,1707823846776,-408.6725541,0.00029214,2]
[313918981,1707823846785,-500.0,0.00029214,2]
[313918982,1707823846794,-1133.91,0.00029214,2]
[313918983,1707823846803,-500.0,0.00029214,2]
[313918984,1707823846812,-282.34718218,0.00029214,2]
[313918985,1707823846822,-500.0,0.00029214,2]
[313918986,1707823846831,-562.4,0.00029214,2]
[313918987,1707823846840,-500.0,0.00029214,2]
[313918988,1707823846849,-500.0,0.00029214,2]
[313918989,1707823846858,-217.74,0.00029214,2]
[313918990,1707823846868,-1947.0,0.00029235,2]
[313918991,1707823846877,-500.0,0.00029315,2]
[313918992,1707823846886,-500.0,0.00029315,2]
[313918993,1707823846895,-500.0,0.00029315,2]
[313918994,1707823846904,-500.0,0.00029315,2]
[313918995,1707823846914,-500.0,0.00029315,2]
[313918996,1707823846923,-500.0,0.00029315,2]
[313918997,1707823846932,-500.0,0.00029315,2]
[313918998,1707823846941,-500.0,0.00029341,2]
[313918999,1707823846950,-500.0,0.00029341,7]
[313919000,1707823846959,-159.79235311,0.00029341,2]
[313919001,1707823846968,-500.0,0.00029341,2]
[313919002,1707823846977,-291.04968427,0.00029341,2]
[313919003,1707823846986,-340.15,0.00029341,2]
[313919004,1707823846995,-500.0,0.00029341,2]
[313919005,1707823847005,-574.19979468,0.00029341,2]
[313919006,1707823847014,-500.0,0.00029341,2]
[313919007,1707823847023,-500.0,0.00029341,2]
[313919008,1707823847033,-500.0,0.00029341,2]
[313919009,1707823847042,-500.0,0.00029341,2]
[313919010,1707823847051,-523.68625987,0.00029341,2]
[313919011,1707823847060,-544.38307319,0.00029341,2]
[313919012,1707823847070,-500.0,0.00029341,2]
[313919013,1707823847079,-1228.16,0.00029341,2]
[313919014,1707823847089,-500.0,0.00029341,2]
[313919015,1707823847098,-1025.19,0.00029341,2]
[313919016,1707823847107,-500.0,0.00029341,2]
[313919017,1707823847116,-500.0,0.00029341,2]
[313919018,1707823847126,-500.0,0.00029341,2]
[313919019,1707823847135,-500.0,0.00029341,2]
[313919020,1707823847144,-500.0,0.00029341,2]
[313919021,1707823847153,-500.0,0.00029341,2]
[313919022,1707823847162,-500.0,0.00029341,2]
[313919023,1707823847171,-1474.43,0.00029341,2]
[313919024,1707823847180,-500.0,0.00029341,2]
[313919025,1707823847190,-835.02,0.00029341,2]
[313919026,1707823847199,-500.0,0.00029341,2]
[313919027,1707823847209,-714.04,0.00029341,2]
[313919028,1707823847218,-500.0,0.00029341,2]
[313919029,1707823847227,-168.85433874,0.00029341,2]
[313919030,1707823847236,-500.0,0.00029341,2]
[313919031,1707823847245,-500.0,0.00029341,2]
[313919032,1707823847255,-500.0,0.00029341,2]
[313919033,1707823847264,-500.0,0.00029341,2]
[313919034,1707823847274,-500.0,0.00029341,2]
[313919035,1707823847283,-500.0,0.00029341,2]
[313919036,1707823847293,-547.59,0.00029341,2]
[313919037,1707823847302,-1562.04,0.00029341,2]
[313919038,1707823847312,-1088.36,0.00029341,2]
[313919039,1707823847321,-682.24,0.00029341,2]
[313919040,1707823847332,-500.0,0.00029341,2]
[313919041,1707823847341,-500.0,0.00029341,2]
[313919042,1707823847353,-656.5,0.00029341,2]
[313919043,1707823847363,-500.0,0.00029341,2]
[313919044,1707823847372,-1750.39,0.00029341,2]
[313919045,1707823847382,-1786.42,0.00029341,2]
[313919046,1707823847392,-500.0,0.00029341,2]
[313919047,1707823847402,-500.0,0.00029341,2]
[313919048,1707823847411,-799.68,0.00029341,2]
[313919049,1707823847421,-500.0,0.00029341,2]
[313919050,1707823847430,-500.0,0.00029341,2]
[313919051,1707823847440,-500.0,0.00029341,2]
[313919052,1707823847450,-500.0,0.00029341,2]
[313919053,1707823847459,-650.86,0.00029341,2]
[313919054,1707823847469,-342.37890919,0.00029341,2]
[313919055,1707823847479,-500.0,0.00029341,2]
[313919056,1707823847489,-500.0,0.00029341,2]
[313919057,1707823847498,-500.0,0.00029341,2]
[313919058,1707823847507,-1873.71,0.00029341,2]
[313919059,1707823847516,-1445.49,0.00029341,2]
[313919060,1707823847526,-500.0,0.00029341,2]
[313919061,1707823847535,-500.0,0.00029341,2]
[313919062,1707823847544,-500.0,0.00029341,2]
[313919063,1707823847553,-552.15,0.00029341,2]
[313919064,1707823847562,-500.0,0.00029341,2]
[313919065,1707823847571,-500.0,0.00029341,2]
[313919066,1707823847582,-500.0,0.00029341,2]
[313919067,1707823847592,-500.0,0.00029341,2]
[313919068,1707823847602,-500.0,0.00029341,2]
[313919069,1707823847612,-500.55,0.00029341,2]
[313919070,1707823847623,-544.89,0.00029341,2]
[313919071,1707823847633,-500.0,0.00029341,2]
[313919072,1707823847644,-500.0,0.00029341,2]
[313919073,1707823847654,-500.0,0.00029341,2]
[313919074,1707823847664,-1167.13,0.00029341,2]
[313919075,1707823847674,-1691.15,0.00029341,2]
[313919076,1707823847686,-500.0,0.00029341,2]
[313919077,1707823847695,-500.0,0.00029341,2]
[313919078,1707823847705,-500.0,0.00029341,2]
[313919079,1707823847714,-500.0,0.00029341,2]
[313919080,1707823847724,-525.08,0.00029341,2]
[313919081,1707823847733,-500.0,0.00029341,2]
[313919082,1707823847743,-500.0,0.00029341,2]
[313919083,1707823847753,-500.0,0.00029341,2]
[313919084,1707823847762,-598.8862559,0.00029341,2]
[313919085,1707823847772,-500.0,0.00029341,2]
[313919086,1707823847893,-500.0,0.00029341,2]
[313919087,1707823847934,-1396.74,0.00029341,2]
[313919088,1707823847944,-1050.85,0.00029341,2]
[313919089,1707823847953,-562.43,0.00029341,2]
[313919090,1707823847963,-2526.49,0.00029341,2]
[313919091,1707823847973,-500.0,0.00029341,2]
[313919092,1707823847982,-575.54306339,0.00029341,2]
[313919093,1707823847991,-500.0,0.00029341,2]
[313919094,1707823848000,-500.0,0.00029341,2]
[313919095,1707823848010,-587.49,0.00029341,2]
[313919096,1707823848019,-500.0,0.00029341,2]
[313919097,1707823848028,-500.0,0.00029341,2]
[313919098,1707823848037,-567.91989763,0.00029341,2]
[313919099,1707823848046,-500.0,0.00029341,2]
[313919100,1707823848055,-500.0,0.00029341,2]
[313919101,1707823848065,-500.0,0.00029341,2]
[313919102,1707823848074,-546.48244125,0.00029341,2]
[313919103,1707823848085,-22013.21,0.00029341,2]
[313919104,1707823848094,-500.0,0.00029341,2]
[313919105,1707823848103,-500.0,0.00029341,2]
[313919106,1707823848112,-500.0,0.00029341,2]
[313919107,1707823848122,-500.0,0.00029341,2]
[313919108,1707823848131,-500.0,0.00029341,2]
[313919109,1707823848141,-980.47,0.00029341,2]
[313919110,1707823848150,-500.0,0.00029341,2]
[313919111,1707823848159,-500.0,0.00029341,2]
[313919112,1707823848168,-500.0,0.00029341,2]
[313919113,1707823848178,-500.0,0.00029341,2]
[313919114,1707823848187,-1644.37,0.00029341,2]
[313919115,1707823848196,-4024.1,0.00029341,2]
[313919116,1707823848206,-553.3216543,0.00029341,2]
[313919117,1707823848214,-500.0,0.00029341,2]
[313919118,1707823848224,-500.0,0.00029341,2]
[313919119,1707823848233,-500.0,0.00029341,2]
[313919120,1707823848243,-504.78,0.00029341,2]
[313919121,1707823848252,-500.0,0.00029341,2]
[313919122,1707823848262,-487.1033152,0.00029341,2]
[313919123,1707823848271,-563.36,0.00029341,2]
[313919124,1707823848280,-500.0,0.00029341,2]
[313919125,1707823848290,-500.0,0.00029341,2]
[313919126,1707823848299,-500.0,0.00029341,2]
[313919127,1707823848309,-538.99,0.00029341,2]
[313919128,1707823848318,-500.0,0.00029341,2]
[313919129,1707823848327,-1049.6,0.00029341,2]
[313919130,1707823848338,-513.64,0.00029341,2]
[313919131,1707823848348,-500.0,0.00029341,2]
[313919132,1707823848358,-1057.39,0.00029341,2]
[313919133,1707823848369,-500.0,0.00029341,2]
[313919134,1707823848378,-500.0,0.00029341,2]
[313919135,1707823848387,-500.0,0.00029341,2]
[313919136,1707823848397,-500.0,0.00029341,2]
[313919137,1707823848407,-302.39,0.00029423,2]
[313919138,1707823848416,-720.1,0.00029488,2]
[313919139,1707823848425,-325.50287941,0.00029488,2]
[313919140,1707823848435,-500.0,0.00029488,2]
[313919141,1707823848445,-589.3846794,0.00029488,2]
[313919142,1707823848455,-500.0,0.00029488,2]
[313919143,1707823848465,-1000.0,0.00029488,7]
[313919144,1707823848474,-500.0,0.00029488,2]
[313919145,1707823848483,-500.0,0.00029488,2]
[313919146,1707823848493,-500.0,0.00029488,2]
[313919147,1707823848502,-1133.91,0.00029488,2]
[313919148,1707823848512,-500.0,0.00029488,2]
[313919149,1707823848521,-500.0,0.00029488,2]
[313919150,1707823848531,-562.4,0.00029488,2]
[313919151,1707823848541,-500.0,0.00029488,2]
[313919152,1707823848550,-631.59695342,0.00029488,2]
[313919153,1707823848560,-228.3964544,0.000295,3]
[313919154,1707823848569,-339.50458929,0.00029583,2]
[313919155,1707823848578,-1371.76002177,0.00029583,2]
[313919156,1707823848589,-382.43375835,0.00029589,2]
[313919157,1707823848598,-500.0,0.00029589,2]
[313919158,1707823848608,-500.0,0.00029589,2]
[313919159,1707823848617,-586.62401715,0.00029589,2]
[313919160,1707823848626,-176.20990453,0.00029589,2]
[313919161,1707823848635,-500.0,0.00029589,2]
[313919162,1707823848644,-500.0,0.00029589,2]
[313919163,1707823848654,-200.0,0.000296,2]
[313919164,1707823848663,-500.0,0.00029615,2]
[313919165,1707823848672,-500.0,0.00029615,7]
[313919166,1707823848681,-500.0,0.00029615,2]
[313919167,1707823848691,-500.0,0.00029615,2]
[313919168,1707823848700,-500.0,0.00029615,2]
[313919169,1707823848710,-500.0,0.00029615,2]
[313919170,1707823848719,-500.0,0.00029615,2]
[313919171,1707823848729,-500.0,0.00029615,2]
[313919172,1707823848739,-500.0,0.00029615,2]
[313919173,1707823848748,-1228.16,0.00029615,2]
[313919174,1707823848758,-500.0,0.00029615,2]
[313919175,1707823848767,-1025.19,0.00029615,2]
[313919176,1707823848777,-500.0,0.00029615,2]
[313919177,1707823848787,-500.0,0.00029615,2]
[313919178,1707823848796,-500.0,0.00029615,2]
[313919179,1707823848805,-500.0,0.00029615,2]
[313919180,1707823848814,-500.0,0.00029615,2]
[313919181,1707823848824,-500.0,0.00029615,2]
[313919182,1707823848834,-1474.43,0.00029615,2]
[313919183,1707823848843,-500.0,0.00029615,2]
[313919184,1707823848852,-835.02,0.00029615,2]
[313919185,1707823848861,-500.0,0.00029615,2]
[313919186,1707823848871,-714.04,0.00029615,2]
[313919187,1707823848880,-500.0,0.00029615,2]
[313919188,1707823848889,-500.0,0.00029615,2]
[313919189,1707823848898,-500.0,0.00029615,2]
[313919190,1707823848907,-425.88693431,0.00029615,2]
[313919191,1707823848916,-165.28023235,0.00029615,2]
[313919192,1707823848926,-500.0,0.00029615,2]
[313919193,1707823848935,-500.0,0.00029615,2]
[313919194,1707823848944,-547.59,0.00029615,2]
[313919195,1707823848954,-1562.04,0.00029615,2]
[313919196,1707823848963,-1088.36,0.00029615,2]
[313919197,1707823848972,-682.24,0.00029615,2]
[313919198,1707823848981,-500.0,0.00029615,2]
[313919199,1707823848991,-549.61674672,0.00029615,2]
[313919200,1707823848999,-656.5,0.00029615,2]
[313919201,1707823849008,-500.0,0.00029615,2]
[313919202,1707823849017,-1750.39,0.00029615,2]
[313919203,1707823849027,-1786.42,0.00029615,2]
[313919204,1707823849036,-500.0,0.00029615,2]
[313919205,1707823849045,-500.0,0.00029615,2]
[313919206,1707823849055,-799.68,0.00029615,2]
[313919207,1707823849064,-500.0,0.00029615,2]
[313919208,1707823849074,-500.0,0.00029615,2]
[313919209,1707823849084,-500.0,0.00029615,2]
[313919210,1707823849094,-500.0,0.00029615,2]
[313919211,1707823849104,-650.86,0.00029615,2]
[313919212,1707823849114,-500.0,0.00029615,2]
[313919213,1707823849124,-500.0,0.00029615,2]
[313919214,1707823849133,-500.0,0.00029615,2]
[313919215,1707823849143,-1873.71,0.00029615,2]
[313919216,1707823849153,-1445.49,0.00029615,2]
[313919217,1707823849163,-500.0,0.00029615,2]
[313919218,1707823849172,-626.3249656,0.00029615,2]
[313919219,1707823849181,-500.0,0.00029615,2]
[313919220,1707823849191,-552.15,0.00029615,2]
[313919221,1707823849200,-500.0,0.00029615,2]
[313919222,1707823849210,-500.0,0.00029615,2]
[313919223,1707823849219,-500.0,0.00029615,2]
[313919224,1707823849228,-500.0,0.00029615,2]
[313919225,1707823849238,-500.0,0.00029615,2]
[313919226,1707823849247,-500.55,0.00029615,2]
[313919227,1707823849257,-544.89,0.00029615,2]
[313919228,1707823849267,-500.0,0.00029615,2]
[313919229,1707823849276,-500.0,0.00029615,2]
[313919230,1707823849286,-500.0,0.00029615,2]
[313919231,1707823849295,-1167.13,0.00029615,2]
[313919232,1707823849305,-1691.15,0.00029615,2]
[313919233,1707823849314,-500.0,0.00029615,2]
[313919234,1707823849323,-500.0,0.00029615,2]
[313919235,1707823849333,-607.46058163,0.00029615,2]
[313919236,1707823849342,-500.0,0.00029615,2]
[313919237,1707823849352,-525.08,0.00029615,2]
[313919238,1707823849362,-500.0,0.00029615,2]
[313919239,1707823849372,-500.0,0.00029615,2]
[313919240,1707823849382,-500.0,0.00029615,2]
[313919241,1707823849391,-500.0,0.00029615,2]
[313919242,1707823849400,-500.0,0.00029615,2]
[313919243,1707823849410,-1396.74,0.00029615,2]
[313919244,1707823849419,-1050.85,0.00029615,2]
[313919245,1707823849429,-562.43,0.00029615,2]
[313919246,1707823849439,-2526.49,0.00029615,2]
[313919247,1707823849449,-500.0,0.00029615,2]
[313919248,1707823849457,-500.0,0.00029615,2]
[313919249,1707823849467,-500.0,0.00029615,2]
[313919250,1707823849477,-587.49,0.00029615,2]
[313919251,1707823849488,-500.0,0.00029615,2]
[313919252,1707823849498,-500.0,0.00029615,2]
[313919253,1707823849508,-500.0,0.00029615,2]
[313919254,1707823849518,-500.0,0.00029615,2]
[313919255,1707823849529,-500.0,0.00029615,2]
[313919256,1707823849541,-22013.21,0.00029615,2]
[313919257,1707823849551,-500.0,0.00029615,2]
[313919258,1707823849561,-500.0,0.00029615,2]
[313919259,1707823849572,-311.19010732,0.00029615,2]
[313919260,1707823849583,-500.0,0.00029615,2]
[313919261,1707823849593,-500.0,0.00029615,2]
[313919262,1707823849602,-980.47,0.00029615,2]
[313919263,1707823849613,-500.0,0.00029615,2]
[313919264,1707823849624,-500.0,0.00029615,2]
[313919265,1707823849634,-500.0,0.00029615,2]
[313919266,1707823849643,-500.0,0.00029615,2]
[313919267,1707823849654,-1644.37,0.00029615,2]
[313919268,1707823849664,-4024.1,0.00029615,2]
[313919269,1707823849675,-500.0,0.00029615,2]
[313919270,1707823849686,-637.3805564,0.00029615,2]
[313919271,1707823849695,-500.0,0.00029615,2]
[313919272,1707823849704,-504.78,0.00029615,2]
[313919273,1707823849713,-500.0,0.00029615,2]
[313919274,1707823849722,-563.36,0.00029615,2]
[313919275,1707823849731,-500.0,0.00029615,2]
[313919276,1707823849740,-500.0,0.00029615,2]
[313919277,1707823849750,-159.97005921,0.00029615,2]
[313919278,1707823849759,-538.99,0.00029615,2]
[313919279,1707823849768,-500.0,0.00029615,2]
[313919280,1707823849778,-1049.6,0.00029615,2]
[313919281,1707823849788,-513.64,0.00029615,2]
[313919282,1707823849797,-500.0,0.00029615,2]
[313919283,1707823849806,-1057.39,0.00029615,2]
[313919284,1707823849816,-500.0,0.00029615,2]
[313919285,1707823849826,-500.0,0.00029615,2]
[313919286,1707823849838,-193.66272673,0.00029615,2]
[313919287,1707823849847,-500.0,0.00029615,2]
[313919288,1707823849857,-616.546,0.00029621,2]
[313919289,1707823849867,-237.0,0.00029621,2]
[313919290,1707823849877,-426.0,0.00029621,2]
[313919291,1707823849887,-1004.0,0.00029621,2]
[313919292,1707823849897,-343.0,0.00029621,2]
[313919293,1707823849907,-150.671,0.00029621,2]
[313919294,1707823849917,-321.0,0.00029621,2]
[313919295,1707823849926,-541.202,0.00029621,2]
[313919296,1707823849935,-453.0,0.00029621,2]
[313919297,1707823849946,-158.219,0.00029621,2]
[313919298,1707823849956,-2981.144,0.00029621,2]
[313919299,1707823849966,-4207.0,0.00029621,2]
[313919300,1707823849976,-19832.0,0.00029621,2]
[313919301,1707823849987,-2833.0,0.00029621,2]
[313919302,1707823849996,-2288.0,0.00029621,2]
[313919303,1707823850005,-2925.0,0.00029621,2]
[313919304,1707823850014,-8158.0,0.00029621,2]
[313919305,1707823850023,-2472.692,0.00029621,2]
[313919306,1707823850033,-7411.0,0.00029621,2]
[313919307,1707823850042,-952.0,0.00029621,2]
[313919308,1707823850052,-841.0,0.00029621,2]
[313919309,1707823850062,-892.122,0.00029621,2]
[313919310,1707823850071,-152.011,0.00029621,2]
[313919311,1707823850080,-1036.0,0.00029621,2]
[313919312,1707823850090,-216.0,0.00029621,2]
[313919313,1707823850101,-1231.0,0.00029621,2]
[313919314,1707823850110,-1253.0,0.00029621,2]
[313919315,1707823850118,-150.0,0.00029667,2]
[313919316,1707823850127,-155.0,0.00029681,2]
[313919317,1707823850136,-800.0,0.00029761,2]
[313919318,1707823850146,-720.1,0.00029762,2]
[313919319,1707823850155,-500.0,0.00029762,2]
[313919320,1707823850165,-500.0,0.00029762,2]
[313919321,1707823850174,-1000.0,0.00029762,7]
[313919322,1707823850183,-360.4658704,0.00029762,2]
[313919323,1707823850193,-500.0,0.00029762,2]
[313919324,1707823850202,-500.0,0.00029762,2]
[313919325,1707823850211,-1133.91,0.00029762,2]
[313919326,1707823850221,-500.0,0.00029762,2]
[313919327,1707823850230,-500.0,0.00029762,2]
[313919328,1707823850240,-562.4,0.00029762,2]
[313919329,1707823850249,-500.0,0.00029762,2]
[313919330,1707823850260,-176.48526302,0.000298,2]
[313919331,1707823850269,-502.96829363,0.00029863,2]
[313919332,1707823850279,-500.0,0.00029863,2]
[313919333,1707823850289,-500.0,0.00029863,2]
[313919334,1707823850298,-4012.091655,0.0002988,2]
[313919335,1707823850308,-69535.3036169,0.0002988,2]
[313919336,1707823850318,-2341.3577451,0.0002988,2]
[313919337,1707823850328,-2346.0504112,0.0002988,2]
[313919338,1707823850376,-500.0,0.00029889,2]
[313919339,1707823850385,-500.0,0.00029889,7]
[313919340,1707823850395,-500.0,0.00029889,2]
[313919341,1707823850404,-500.0,0.00029889,2]
[313919342,1707823850413,-500.0,0.00029889,2]
[313919343,1707823850422,-500.0,0.00029889,2]
[313919344,1707823850432,-500.0,0.00029889,2]
[313919345,1707823850443,-500.0,0.00029889,2]
[313919346,1707823850452,-500.0,0.00029889,2]
[313919347,1707823850462,-1228.16,0.00029889,2]
[313919348,1707823850472,-500.0,0.00029889,2]
[313919349,1707823850481,-1025.19,0.00029889,2]
[313919350,1707823850491,-500.0,0.00029889,2]